[Event "CZE-tht Extraliga 2018-19"]
[Site "Czech Republic"]
[Date "2019.01.12"]
[Round "5"]
[White "Paszewski, Mateusz"]
[Black "Svoboda, Svatopluk"]
[Result "1/2-1/2"]
[ECO "B00"]
[WhiteElo "2333"]
[BlackElo "2438"]
[Annotator "NA"]
[PlyCount "68"]
[EventDate "2018.11.03"]
[EventType "team-tourn"]
[EventCountry "CZE"]
[SourceTitle "playchess.com"]
[Source "ChessBase"]
[SourceQuality "1"]
[WhiteTeam "Duras"]
[BlackTeam "Siesta"]
[TimeControl "40/5400+30:1800+30"]

1. e4 {[%emt 0:00:00]} g6 {[%emt 0:08:39]} 2. d4 {[%emt 0:00:00]} Bg7 {[%emt 0:00:14]} 3. Nf3 {[%emt 0:00:49]} d6 {[%emt 0:00:13]} 4. Bc4 {[%emt 0:00:20]} e6 {[%emt 0:00:23]} 5. O-O {[%emt 0:02:01]} Ne7 {[%emt 0:00:52]} 6. Nbd2 {[%emt 0:03:12]} d5 {[%emt 0:01:48]} 7. Bd3 {[%emt 0:00:57]} O-O {[%emt 0:02:21]} 8. c3 {[%emt 0:01:05]} b6 {[%emt 0:02:29]} 9. exd5 {[%emt 0:07:47]} exd5 {[%emt 0:04:09]} 10. Re1 {[%emt 0:01:33]} Bf5 {[%emt 0:00:19]} 11. Bxf5 {[%emt 0:01:15]} Nxf5 {[%emt 0:00:22]} 12. Ne5 {[%emt 0:00:30]} Nd7 {[%emt 0:06:56]} 13. Ndf3 {[%emt 0:04:50]} Re8 {[%emt 0:19:31]} 14. Bf4 {[%emt 0:05:44]} Nf8 {[%emt 0:02:56]} 15. Qb3 {[%emt 0:11:22]} Ne6 {[%emt 0:05:20]} 16. Bg3 {[%emt 0:10:01]} f6 {[%emt 0:05:27]} 17. Nd3 {[%emt 0:05:47]} Qd7 {[%emt 0:02:20]} 18. Rad1 {[%emt 0:05:45]} c6 {[%emt 0:11:30]} 19. Nh4 {[%emt 0:10:04]} Ng5 {[%emt 0:06:39]} 20. Nxf5 {[%emt 0:04:45]} Qxf5 {[%emt 0:00:09]} 21. Nb4 {[%emt 0:01:30]} Qd7 {[%emt 0:02:19]} 22. Qa4 {[%emt 0:02:50]} Rec8 {[%emt 0:00:50]} 23. Re2 {[%emt 0:04:23]} Bf8 {[%emt 0:00:29]} 24. Nd3 {[%emt 0:00:58]} Ne4 {[%emt 0:01:19]} 25. Rde1 {[%emt 0:03:36]} Qf5 {[%emt 0:02:00]} 26. Qd1 {[%emt 0:02:55]} h5 {[%emt 0:01:05]} 27. Bf4 {[%emt 0:01:28]} Kf7 {[%emt 0:02:13]} 28. f3 {[%emt 0:01:17]} Nd6 {[%emt 0:00:40]} 29. h3 {[%emt 0:01:02]} g5 {[%emt 0:02:04]} 30. g4 {[%emt 0:01:12]} Qh7 {[%emt 0:00:57]} 31. Bg3 {[%emt 0:00:14]} hxg4 {[%emt 0:02:13]} 32. hxg4 {[%emt 0:00:01]} Qh3 {[%emt 0:00:21]} 33. Kf2 {[%emt 0:00:29]} Qh7 {[%emt 0:00:45]} 34. Rh1 {[%emt 0:01:04]} Qg6 {[%emt 0:00:18]} 1/2-1/2

[Event "CZE-tht Extraliga 2018-19"]
[Site "Czech Republic"]
[Date "2019.01.12"]
[Round "5"]
[White "Chytilek, Roman"]
[Black "Smid, Miroslav"]
[Result "1/2-1/2"]
[ECO "A06"]
[WhiteElo "2331"]
[BlackElo "2266"]
[Annotator "NA"]
[PlyCount "43"]
[EventDate "2018.11.03"]
[EventType "team-tourn"]
[EventCountry "CZE"]
[SourceTitle "playchess.com"]
[Source "ChessBase"]
[SourceQuality "1"]
[WhiteTeam "Duras"]
[BlackTeam "Siesta"]
[TimeControl "40/5400+30:1800+30"]

1. Nf3 {[%emt 0:00:00]} d5 {[%emt 0:00:00]} 2. c4 {[%emt 0:00:40]} e6 {[%emt 0:00:24]} 3. g3 {[%emt 0:01:23]} Nf6 {[%emt 0:00:31]} 4. Bg2 {[%emt 0:00:19]} Be7 {[%emt 0:02:18]} 5. O-O {[%emt 0:01:44]} O-O {[%emt 0:00:21]} 6. b3 {[%emt 0:02:02]} c5 {[%emt 0:04:03]} 7. cxd5 {[%emt 0:00:32]} Nxd5 {[%emt 0:05:32]} 8. Bb2 {[%emt 0:03:08]} Nc6 {[%emt 0:02:38]} 9. Nc3 {[%emt 0:15:40]} Nc7 {[%emt 0:10:17]} 10. Rc1 {[%emt 0:04:14]} b6 {[%emt 0:05:15]} 11. Na4 {[%emt 0:20:01]} Bb7 {[%emt 0:13:17]} 12. d4 {[%emt 0:11:45]} Nxd4 {[%emt 0:13:28]} 13. Nxd4 {[%emt 0:00:12]} Bxg2 {[%emt 0:00:07]} 14. Kxg2 {[%emt 0:00:05]} cxd4 {[%emt 0:00:34]} 15. Qxd4 {[%emt 0:00:37]} Qxd4 {[%emt 0:00:36]} 16. Bxd4 {[%emt 0:00:05]} Nb5 {[%emt 0:00:18]} 17. Bb2 {[%emt 0:04:23]} Rfd8 {[%emt 0:03:38]} 18. Rfd1 {[%emt 0:04:28]} f6 {[%emt 0:03:29]} 19. f4 {[%emt 0:09:01]} Kf7 {[%emt 0:03:12]} 20. Kf3 {[%emt 0:01:28]} Rxd1 {[%emt 0:05:37]} 21. Rxd1 {[%emt 0:00:14]} Rc8 {[%emt 0:00:51]} 22. Ke3 {[%emt 0:08:06]} 1/2-1/2

[Event "CZE-tht Extraliga 2018-19"]
[Site "Czech Republic"]
[Date "2019.01.12"]
[Round "5"]
[White "Sodoma, Jan"]
[Black "Priehoda, Vitezslav"]
[Result "1/2-1/2"]
[ECO "A06"]
[WhiteElo "2324"]
[BlackElo "2358"]
[Annotator "NA"]
[PlyCount "97"]
[EventDate "2018.11.03"]
[EventType "team-tourn"]
[EventCountry "CZE"]
[SourceTitle "playchess.com"]
[Source "ChessBase"]
[SourceQuality "1"]
[WhiteTeam "Turnov"]
[BlackTeam "Lysa nad Labem"]
[TimeControl "40/5400+30:1800+30"]

1. Nf3 {[%emt 0:00:00]} d5 {[%emt 0:00:00]} 2. d4 {[%emt 0:00:05]} e6 {[%emt 0:00:00]} 3. c4 {[%emt 0:01:56]} c6 {[%emt 0:00:24]} 4. e3 {[%emt 0:00:57]} f5 {[%emt 0:00:11]} 5. Be2 {[%emt 0:01:06]} Nf6 {[%emt 0:00:27]} 6. O-O {[%emt 0:00:07]} Bd6 {[%emt 0:00:21]} 7. b3 {[%emt 0:00:06]} Qe7 {[%emt 0:00:19]} 8. Bb2 {[%emt 0:01:44]} O-O {[%emt 0:00:37]} 9. Ne5 {[%emt 0:01:48]} Bd7 {[%emt 0:01:15]} 10. Nd2 {[%emt 0:11:33]} Be8 {[%emt 0:05:15]} 11. Nd3 {[%emt 0:04:00]} Nbd7 {[%emt 0:04:15]} 12. Nf3 {[%emt 0:02:40]} Bh5 {[%emt 0:07:16]} 13. Nfe5 {[%emt 0:01:45]} Bxe2 {[%emt 0:00:08]} 14. Qxe2 {[%emt 0:00:04]} Rad8 {[%emt 0:23:58]} 15. a4 {[%emt 0:04:05]} Ne4 {[%emt 0:17:25]} 16. f3 {[%emt 0:11:11]} Ng5 {[%emt 0:03:06]} 17. b4 {[%emt 0:00:33]} Bxe5 {[%emt 0:04:07]} 18. Nxe5 {[%emt 0:17:01]} Nxe5 {[%emt 0:01:14]} 19. dxe5 {[%emt 0:00:05]} dxc4 {[%emt 0:07:30]} 20. Qxc4 {[%emt 0:02:24]} Rd2 {[%emt 0:00:42]} 21. Rf2 {[%emt 0:01:44]} Rxf2 {[%emt 0:07:24]} 22. Kxf2 {[%emt 0:00:07]} Rd8 {[%emt 0:00:07]} 23. Bd4 {[%emt 0:00:54]} Nf7 {[%emt 0:00:27]} 24. f4 {[%emt 0:08:08]} Rd5 {[%emt 0:03:15]} 25. g3 {[%emt 0:04:13]} a6 {[%emt 0:00:46]} 26. Rd1 {[%emt 0:08:19]} Qd7 {[%emt 0:02:25]} 27. Rd3 {[%emt 0:01:31]} h6 {[%emt 0:03:06]} 28. Ke2 {[%emt 0:00:41]} Nh8 {[%emt 0:01:20]} 29. Bc5 {[%emt 0:01:37]} Ng6 {[%emt 0:01:13]} 30. e4 {[%emt 0:01:03]} b5 {[%emt 0:01:58]} 31. axb5 {[%emt 0:05:07]} axb5 {[%emt 0:00:40]} 32. Qc2 {[%emt 0:00:57]} fxe4 {[%emt 0:00:05]} 33. Ra3 {[%emt 0:02:23]} Qd8 {[%emt 0:04:24]} 34. Bd6 {[%emt 0:02:21]} Ne7 {[%emt 0:00:27]} 35. Bxe7 {[%emt 0:00:51]} Qxe7 {[%emt 0:00:01]} 36. Qxe4 {[%emt 0:00:09]} Qe8 {[%emt 0:00:52]} 37. g4 {[%emt 0:01:34]} Qd8 {[%emt 0:00:18]} 38. Rd3 {[%emt 0:01:31]} Qh4 {[%emt 0:00:18]} 39. h3 {[%emt 0:00:20]} Qe7 {[%emt 0:01:10]} 40. Ra3 {[%emt 0:02:22]} Qd8 {[%emt 0:00:24]} 41. Qg6 {[%emt 0:03:05]} Kh8 {[%emt 0:01:16]} 42. Kf3 {[%emt 0:05:57]} Qh4 {[%emt 0:10:51]} 43. Ra8+ {[%emt 0:03:00]} Rd8 {[%emt 0:00:02]} 44. Rxd8+ {[%emt 0:01:22]} Qxd8 {[%emt 0:00:04]} 45. Kg3 {[%emt 0:00:57]} Qd2 {[%emt 0:08:11]} 46. Qe4 {[%emt 0:02:47]} Qc3+ {[%emt 0:00:28]} 47. Kg2 {[%emt 0:00:57]} Qd2+ {[%emt 0:00:15]} 48. Kg3 {[%emt 0:00:12]} Qc3+ {[%emt 0:00:02]} 49. Kg2 {[%emt 0:00:29]} 1/2-1/2

[Event "CZE-tht Extraliga 2018-19"]
[Site "Czech Republic"]
[Date "2019.01.12"]
[Round "5"]
[White "Holemar, David"]
[Black "Kriebel, Tadeas"]
[Result "1/2-1/2"]
[ECO "D30"]
[WhiteElo "2302"]
[BlackElo "2519"]
[Annotator "ChessBase"]
[PlyCount "115"]
[EventDate "2018.11.03"]
[EventType "team-tourn"]
[EventCountry "CZE"]
[SourceTitle "playchess.com"]
[Source "ChessBase"]
[SourceQuality "1"]
[WhiteTeam "Brno"]
[BlackTeam "Novoborsky"]
[TimeControl "40/5400+30:1800+30"]

1. d4 {[%emt 0:00:00]} d5 {[%emt 0:11:18]} 2. c4 {[%emt 0:00:00]} e6 {[%emt 0:00:13]} 3. cxd5 {[%emt 0:00:00]} exd5 {[%emt 0:01:38]} 4. Nc3 {[%emt 0:00:00]} c6 {[%emt 0:00:09]} 5. Bf4 {[%emt 0:00:00]} Bd6 {[%emt 0:00:10]} 6. Bg3 {[%emt 0:00:22]} Nf6 {[%emt 0:02:32]} 7. e3 {[%emt 0:00:02]} O-O {[%emt 0:06:54]} 8. Bd3 {[%emt 0:00:07]} Re8 {[%emt 0:00:26]} 9. Nge2 {[%emt 0:00:28]} Bg4 {[%emt 0:03:38]} 10. Qc2 {[%emt 0:01:10]} Bxe2 {[%emt 0:00:55]} 11. Nxe2 {[%emt 0:06:09]} Qc7 {[%emt 0:11:10]} 12. O-O {[%emt 0:04:55]} Nbd7 {[%emt 0:02:02]} 13. Rac1 {[%emt 0:06:18]} a5 {[%emt 0:09:06]} 14. Qd2 {[%emt 0:19:18]} Nb6 {[%emt 0:07:11]} 15. f3 {[%emt 0:07:41]} Bxg3 {[%emt 0:05:24]} 16. Nxg3 {[%emt 0:00:36]} Qd6 {[%emt 0:00:18]} 17. Qf2 {[%emt 0:04:59]} Rad8 {[%emt 0:03:04]} 18. Nf5 {[%emt 0:12:26]} Qe6 {[%emt 0:01:18]} 19. Rfe1 {[%emt 0:00:11]} g6 {[%emt 0:01:41]} 20. Ng3 {[%emt 0:00:13]} Qd6 {[%emt 0:01:44]} 21. Bb1 {[%emt 0:04:12]} a4 {[%emt 0:07:49]} 22. a3 {[%emt 0:22:55]} Nc4 {[%emt 0:00:48]} 23. e4 {[%emt 0:00:53]} Qf4 {[%emt 0:00:15]} 24. e5 {[%emt 0:00:33]} Nd7 {[%emt 0:00:32]} 25. Nf1 {[%emt 0:01:31]} f5 {[%emt 0:15:45]} 26. g3 {[%emt 0:00:43]} Qh6 {[%emt 0:00:08]} 27. f4 {[%emt 0:00:07]} b5 {[%emt 0:01:01]} 28. h4 {[%emt 0:02:51]} Nf8 {[%emt 0:00:14]} 29. Nh2 {[%emt 0:00:08]} Ne6 {[%emt 0:00:23]} 30. Nf3 {[%emt 0:00:09]} Qf8 {[%emt 0:02:13]} 31. h5 {[%emt 0:00:49]} b4 {[%emt 0:01:57]} 32. Bd3 {[%emt 0:00:56]} bxa3 {[%emt 0:00:22]} 33. Bxc4 {[%emt 0:00:31]} dxc4 {[%emt 0:00:06]} 34. Rxc4 {[%emt 0:00:14]} axb2 {[%emt 0:00:37]} 35. Qxb2 {[%emt 0:00:11]} Rb8 {[%emt 0:00:58]} 36. Qa2 {[%emt 0:00:11]} Rb3 {[%emt 0:00:43]} 37. Rf1 {[%emt 0:03:11]} Ra3 {[%emt 0:03:02]} 38. Qc2 {[%emt 0:01:12]} gxh5 {[%emt 0:00:14]} 39. Rxa4 {[%emt 0:01:00]} Rxa4 {[%emt 0:00:42]} 40. Qxa4 {[%emt 0:00:04]} Rc8 {[%emt 0:00:48]} 41. Qb3 {[%emt 0:14:18]} Qf7 {[%emt 0:00:27]} 42. Rc1 {[%emt 0:00:41]} Kh8 {[%emt 0:02:10]} 43. Kh2 {[%emt 0:02:03]} Qd7 {[%emt 0:05:24]} 44. Qc4 {[%emt 0:05:14]} h4 {[%emt 0:06:25]} 45. Nxh4 {[%emt 0:05:08]} Nxd4 {[%emt 0:00:22]} 46. e6 {[%emt 0:02:16]} Nxe6 {[%emt 0:01:47]} 47. Nxf5 {[%emt 0:00:15]} Ng7 {[%emt 0:06:03]} 48. Nd4 {[%emt 0:04:37]} Re8 {[%emt 0:04:19]} 49. Nf3 {[%emt 0:00:57]} Re3 {[%emt 0:01:51]} 50. Rc3 {[%emt 0:00:42]} Rxc3 {[%emt 0:00:56]} 51. Qxc3 {[%emt 0:00:02]} Qd5 {[%emt 0:01:35]} 52. Ne5 {[%emt 0:01:12]} c5 {[%emt 0:01:09]} 53. Nd3 {[%emt 0:00:12]} Qh5+ {[%emt 0:00:31]} 54. Kg2 {[%emt 0:00:24]} Qd5+ {[%emt 0:01:10]} 55. Kh2 {[%emt 0:00:30]} Qh5+ {[%emt 0:00:07]} 56. Kg2 {[%emt 0:00:05]} Qd5+ {[%emt 0:00:03]} 57. Kg1 {[%emt 0:01:35]} Qf3 {[%emt 0:00:17]} 58. Kh2 {[%emt 0:00:28]} 1/2-1/2

[Event "CZE-tht Extraliga 2018-19"]
[Site "Czech Republic"]
[Date "2019.01.12"]
[Round "5"]
[White "Parizek, Vojtech"]
[Black "Stocek, Jiri"]
[Result "0-1"]
[ECO "B80"]
[WhiteElo "2277"]
[BlackElo "2587"]
[Annotator "ChessBase"]
[PlyCount "74"]
[EventDate "2018.11.03"]
[EventType "team-tourn"]
[EventCountry "CZE"]
[SourceTitle "playchess.com"]
[Source "ChessBase"]
[SourceQuality "1"]
[WhiteTeam "Siesta B"]
[BlackTeam "Pardubice"]
[TimeControl "40/5400+30:1800+30"]

1. e4 {[%emt 0:00:00]} c5 {[%emt 0:01:30]} 2. Nf3 {[%emt 0:00:14]} e6 {[%emt 0:00:44]} 3. d4 {[%emt 0:00:22]} cxd4 {[%emt 0:00:17]} 4. Nxd4 {[%emt 0:00:08]} Nc6 {[%emt 0:01:13]} 5. Nc3 {[%emt 0:03:42]} d6 {[%emt 0:00:33]} 6. g3 {[%emt 0:02:26]} Nf6 {[%emt 0:02:02]} 7. Bg2 {[%emt 0:01:08]} Bd7 {[%emt 0:00:29]} 8. Nce2 {[%emt 0:05:45]} Be7 {[%emt 0:04:08]} 9. O-O {[%emt 0:01:41]} O-O {[%emt 0:00:32]} 10. Re1 {[%emt 0:05:09]} Rc8 {[%emt 0:15:46]} 11. b3 {[%emt 0:10:42]} Nxd4 {[%emt 0:07:22]} 12. Nxd4 {[%emt 0:00:56]} b5 {[%emt 0:00:17]} 13. Bb2 {[%emt 0:03:27]} Qb6 {[%emt 0:06:07]} 14. Qd3 {[%emt 0:06:44]} Rfd8 {[%emt 0:03:06]} 15. Rac1 {[%emt 0:02:47]} a6 {[%emt 0:08:14]} 16. c4 {[%emt 0:09:09]} Ng4 {[%emt 0:02:31]} 17. Qe2 {[%emt 0:02:21]} Ne5 {[%emt 0:06:56]} 18. cxb5 {[%emt 0:01:46]} axb5 {[%emt 0:00:51]} 19. a3 {[%emt 0:05:03]} h6 {[%emt 0:07:24]} 20. Kh1 {[%emt 0:04:50]} Bf6 {[%emt 0:04:10]} 21. Red1 {[%emt 0:06:18]} Ng6 {[%emt 0:11:01]} 22. Nf3 {[%emt 0:08:19]} Bxb2 {[%emt 0:00:27]} 23. Qxb2 {[%emt 0:00:16]} e5 {[%emt 0:01:31]} 24. Rd3 {[%emt 0:06:13]} Rxc1+ {[%emt 0:02:28]} 25. Qxc1 {[%emt 0:00:05]} Bc6 {[%emt 0:05:08]} 26. Qe3 {[%emt 0:05:36]} Qb7 {[%emt 0:00:28]} 27. Ne1 {[%emt 0:02:41]} Nf8 {[%emt 0:00:30]} 28. Nc2 {[%emt 0:01:21]} Ne6 {[%emt 0:00:58]} 29. Nb4 {[%emt 0:01:22]} Nd4 {[%emt 0:00:31]} 30. Rc3 {[%emt 0:02:21]} Rc8 {[%emt 0:04:28]} 31. Qd3 {[%emt 0:01:57]} Rc7 {[%emt 0:01:11]} 32. Nc2 {[%emt 0:00:35]} Bxe4 {[%emt 0:01:02]} 33. Rxc7 {[%emt 0:00:27]} Bxg2+ {[%emt 0:00:06]} 34. Kg1 {[%emt 0:00:05]} Nf3+ {[%emt 0:01:25]} 35. Kxg2 {[%emt 0:00:07]} Ne1+ {[%emt 0:00:05]} 36. Kf1 {[%emt 0:00:09]} Qh1+ {[%emt 0:00:05]} 37. Ke2 {[%emt 0:00:08]} Nxd3 {[%emt 0:00:08]} 0-1

[Event "CZE-tht Extraliga 2018-19"]
[Site "Czech Republic"]
[Date "2019.01.12"]
[Round "5"]
[White "Mitura, Vaclav"]
[Black "Koziol, Kamil"]
[Result "0-1"]
[ECO "A45"]
[WhiteElo "2155"]
[BlackElo "2285"]
[Annotator "NA"]
[PlyCount "106"]
[EventDate "2018.11.03"]
[EventType "team-tourn"]
[EventCountry "CZE"]
[SourceTitle "playchess.com"]
[Source "ChessBase"]
[SourceQuality "1"]
[WhiteTeam "Cesky Tesin"]
[BlackTeam "Ostrava"]
[TimeControl "40/5400+30:1800+30"]

1. d4 {[%emt 0:00:00]} Nf6 {[%emt 0:00:00]} 2. Bf4 {[%emt 0:00:17]} d5 {[%emt 0:01:25]} 3. e3 {[%emt 0:01:48]} c5 {[%emt 0:02:00]} 4. Nf3 {[%emt 0:02:48]} Nc6 {[%emt 0:01:43]} 5. Nc3 {[%emt 0:03:17]} a6 {[%emt 0:04:57]} 6. dxc5 {[%emt 0:20:49]} Bg4 {[%emt 0:04:12]} 7. Be2 {[%emt 0:05:34]} e6 {[%emt 0:04:10]} 8. h3 {[%emt 0:05:54]} Bh5 {[%emt 0:03:28]} 9. O-O {[%emt 0:13:34]} Bxc5 {[%emt 0:01:01]} 10. a3 {[%emt 0:00:11]} O-O {[%emt 0:06:51]} 11. Ne5 {[%emt 0:03:18]} Bxe2 {[%emt 0:03:56]} 12. Qxe2 {[%emt 0:00:27]} Rc8 {[%emt 0:10:09]} 13. Rfd1 {[%emt 0:04:20]} Nxe5 {[%emt 0:09:26]} 14. Bxe5 {[%emt 0:00:08]} Nd7 {[%emt 0:01:20]} 15. Bg3 {[%emt 0:10:43]} Qf6 {[%emt 0:06:42]} 16. Qg4 {[%emt 0:14:10]} Ne5 {[%emt 0:02:16]} 17. Bxe5 {[%emt 0:02:03]} Qxe5 {[%emt 0:00:06]} 18. Qf4 {[%emt 0:01:15]} Bd6 {[%emt 0:06:44]} 19. Qxe5 {[%emt 0:05:02]} Bxe5 {[%emt 0:00:02]} 20. Rd3 {[%emt 0:00:43]} b5 {[%emt 0:03:50]} 21. Kf1 {[%emt 0:00:35]} Rc4 {[%emt 0:02:40]} 22. Ke2 {[%emt 0:00:27]} Rfc8 {[%emt 0:00:07]} 23. Kd2 {[%emt 0:00:23]} d4 {[%emt 0:10:47]} 24. exd4 {[%emt 0:00:11]} Bxd4 {[%emt 0:00:05]} 25. f3 {[%emt 0:01:40]} Be5 {[%emt 0:06:22]} 26. Re1 {[%emt 0:01:16]} f6 {[%emt 0:00:14]} 27. Re4 {[%emt 0:00:46]} Rxe4 {[%emt 0:01:04]} 28. fxe4 {[%emt 0:00:07]} Kf8 {[%emt 0:01:17]} 29. b3 {[%emt 0:01:07]} Ke7 {[%emt 0:00:57]} 30. a4 {[%emt 0:00:20]} Rc5 {[%emt 0:03:36]} 31. axb5 {[%emt 0:00:18]} axb5 {[%emt 0:00:10]} 32. Ne2 {[%emt 0:00:53]} Bd6 {[%emt 0:00:25]} 33. Rc3 {[%emt 0:00:46]} Rg5 {[%emt 0:00:07]} 34. Rc6 {[%emt 0:00:14]} Rxg2 {[%emt 0:01:59]} 35. Rb6 {[%emt 0:00:18]} b4 {[%emt 0:00:43]} 36. Rb7+ {[%emt 0:00:23]} Kd8 {[%emt 0:00:42]} 37. Kd3 {[%emt 0:00:12]} Kc8 {[%emt 0:00:45]} 38. Rf7 {[%emt 0:00:46]} e5 {[%emt 0:00:49]} 39. h4 {[%emt 0:00:56]} h5 {[%emt 0:00:37]} 40. c3 {[%emt 0:00:30]} Kd8 {[%emt 0:01:12]} 41. Rb7 {[%emt 0:30:42]} g5 {[%emt 0:30:54]} 42. Rh7 {[%emt 0:00:00]} Rh2 {[%emt 0:00:00]} 43. Rxh5 {[%emt 0:00:00]} Rh3+ {[%emt 0:00:00]} 44. Kc2 {[%emt 0:00:00]} gxh4 {[%emt 0:00:00]} 45. cxb4 {[%emt 0:00:00]} Bxb4 {[%emt 0:00:00]} 46. Nc1 {[%emt 0:00:00]} Be1 {[%emt 0:00:00]} 47. Nd3 {[%emt 0:00:00]} Rh2+ {[%emt 0:00:00]} 48. Kd1 {[%emt 0:00:00]} Bg3 {[%emt 0:00:00]} 49. Rh7 {[%emt 0:00:00]} h3 {[%emt 0:00:00]} 50. Nc5 {[%emt 0:00:00]} Rh1+ {[%emt 0:00:00]} 51. Kd2 {[%emt 0:00:00]} h2 {[%emt 0:00:00]} 52. Nb7+ {[%emt 0:00:00]} Kc8 {[%emt 0:00:00]} 53. Nd6+ {[%emt 0:00:00]} Kb8 {[%emt 0:00:00]} 0-1

[Event "CZE-tht Extraliga 2018-19"]
[Site "Czech Republic"]
[Date "2019.01.13"]
[Round "6"]
[White "Cernousek, Lukas"]
[Black "Polak, Tomas"]
[Result "1/2-1/2"]
[ECO "C95"]
[WhiteElo "2427"]
[BlackElo "2508"]
[Annotator "ChessBase"]
[PlyCount "61"]
[EventDate "2018.11.03"]
[EventType "team-tourn"]
[EventCountry "CZE"]
[SourceTitle "playchess.com"]
[Source "ChessBase"]
[SourceQuality "1"]
[WhiteTeam "Siesta"]
[BlackTeam "Brno"]
[TimeControl "40/5400+30:1800+30"]

1. e4 {[%emt 0:00:00]} e5 {[%emt 0:00:00]} 2. Nf3 {[%emt 0:00:00]} Nc6 {[%emt 0:00:06]} 3. Bb5 {[%emt 0:00:00]} a6 {[%emt 0:00:25]} 4. Ba4 {[%emt 0:00:00]} Nf6 {[%emt 0:00:16]} 5. O-O {[%emt 0:00:00]} Be7 {[%emt 0:00:14]} 6. Re1 {[%emt 0:00:10]} b5 {[%emt 0:00:17]} 7. Bb3 {[%emt 0:00:02]} d6 {[%emt 0:00:14]} 8. c3 {[%emt 0:00:06]} O-O {[%emt 0:00:17]} 9. h3 {[%emt 0:00:04]} Nb8 {[%emt 0:00:30]} 10. d4 {[%emt 0:00:07]} Nbd7 {[%emt 0:00:13]} 11. Nbd2 {[%emt 0:00:05]} Bb7 {[%emt 0:00:07]} 12. Bc2 {[%emt 0:00:06]} Re8 {[%emt 0:00:21]} 13. Nf1 {[%emt 0:00:05]} Bf8 {[%emt 0:00:16]} 14. Ng3 {[%emt 0:00:07]} g6 {[%emt 0:00:15]} 15. a4 {[%emt 0:00:45]} c5 {[%emt 0:00:26]} 16. d5 {[%emt 0:00:11]} c4 {[%emt 0:00:29]} 17. Bg5 {[%emt 0:00:17]} h6 {[%emt 0:00:46]} 18. Be3 {[%emt 0:00:08]} Nc5 {[%emt 0:00:22]} 19. Qd2 {[%emt 0:02:50]} h5 {[%emt 0:01:05]} 20. Bg5 {[%emt 0:00:14]} Be7 {[%emt 0:00:50]} 21. Bh6 {[%emt 0:08:08]} Nh7 {[%emt 0:01:13]} 22. Be3 {[%emt 0:13:47]} Qc7 {[%emt 0:23:04]} 23. Qe2 {[%emt 0:03:05]} Bf6 {[%emt 0:13:00]} 24. Nh2 {[%emt 0:05:26]} Qe7 {[%emt 0:03:42]} 25. Nf3 {[%emt 0:12:20]} Nf8 {[%emt 0:14:00]} 26. Bxc5 {[%emt 0:12:30]} dxc5 {[%emt 0:00:20]} 27. Reb1 {[%emt 0:00:10]} Qd7 {[%emt 0:14:22]} 28. Nd2 {[%emt 0:05:16]} Reb8 {[%emt 0:04:15]} 29. b3 {[%emt 0:02:22]} cxb3 {[%emt 0:01:25]} 30. Nxb3 {[%emt 0:00:08]} c4 {[%emt 0:03:43]} 31. Nc5 {[%emt 0:22:19]} 1/2-1/2

[Event "CZE-tht Extraliga 2018-19"]
[Site "Czech Republic"]
[Date "2019.01.13"]
[Round "6"]
[White "Vlasak, Lukas"]
[Black "Kuba, Jindrich"]
[Result "1-0"]
[ECO "A46"]
[WhiteElo "2401"]
[BlackElo "2320"]
[Annotator "NA"]
[PlyCount "93"]
[EventDate "2018.11.03"]
[EventType "team-tourn"]
[EventCountry "CZE"]
[SourceTitle "playchess.com"]
[Source "ChessBase"]
[SourceQuality "1"]
[WhiteTeam "Turnov"]
[BlackTeam "Siesta B"]
[TimeControl "40/5400+30:1800+30"]

1. d4 {[%emt 0:00:00]} Nf6 {[%emt 0:00:00]} 2. Nf3 {[%emt 0:00:00]} e6 {[%emt 0:00:00]} 3. Bf4 {[%emt 0:00:16]} d5 {[%emt 0:00:23]} 4. e3 {[%emt 0:00:11]} Nbd7 {[%emt 0:01:29]} 5. Nbd2 {[%emt 0:03:07]} Be7 {[%emt 0:00:19]} 6. Bd3 {[%emt 0:05:52]} Nh5 {[%emt 0:00:43]} 7. Be5 {[%emt 0:00:15]} Nxe5 {[%emt 0:00:52]} 8. dxe5 {[%emt 0:01:30]} g6 {[%emt 0:00:06]} 9. c3 {[%emt 0:21:00]} c5 {[%emt 0:06:15]} 10. g4 {[%emt 0:07:56]} Ng7 {[%emt 0:00:11]} 11. h3 {[%emt 0:00:07]} Bd7 {[%emt 0:00:34]} 12. Qe2 {[%emt 0:00:57]} Qb6 {[%emt 0:02:04]} 13. O-O-O {[%emt 0:01:39]} O-O-O {[%emt 0:02:31]} 14. h4 {[%emt 0:02:39]} h5 {[%emt 0:00:18]} 15. Ng5 {[%emt 0:00:17]} Rdf8 {[%emt 0:04:04]} 16. gxh5 {[%emt 0:11:45]} Nxh5 {[%emt 0:00:41]} 17. Rdg1 {[%emt 0:06:09]} Qc7 {[%emt 0:03:45]} 18. Nxf7 {[%emt 0:09:16]} Rxf7 {[%emt 0:00:09]} 19. Bxg6 {[%emt 0:00:06]} Rff8 {[%emt 0:00:04]} 20. Bxh5 {[%emt 0:00:48]} Qxe5 {[%emt 0:00:03]} 21. Bg4 {[%emt 0:01:30]} Qf6 {[%emt 0:00:31]} 22. f4 {[%emt 0:01:57]} Rxh4 {[%emt 0:03:10]} 23. Rxh4 {[%emt 0:00:48]} Qxh4 {[%emt 0:00:01]} 24. Nf3 {[%emt 0:00:15]} Qh6 {[%emt 0:01:42]} 25. Ne5 {[%emt 0:02:58]} Be8 {[%emt 0:00:06]} 26. Qf3 {[%emt 0:11:01]} Kb8 {[%emt 0:05:03]} 27. Rh1 {[%emt 0:03:01]} Qg7 {[%emt 0:03:13]} 28. Qh3 {[%emt 0:05:14]} Bd6 {[%emt 0:01:15]} 29. Qh6 {[%emt 0:01:25]} Bxe5 {[%emt 0:13:44]} 30. Qxe6 {[%emt 0:00:12]} Bc6 {[%emt 0:02:53]} 31. Qxe5+ {[%emt 0:01:18]} Qxe5 {[%emt 0:00:01]} 32. fxe5 {[%emt 0:00:12]} Re8 {[%emt 0:00:03]} 33. Rh5 {[%emt 0:01:10]} Rg8 {[%emt 0:00:53]} 34. Rh4 {[%emt 0:00:58]} Re8 {[%emt 0:00:13]} 35. e6 {[%emt 0:00:53]} Kc7 {[%emt 0:00:05]} 36. b4 {[%emt 0:00:27]} Kd6 {[%emt 0:01:50]} 37. Kd2 {[%emt 0:00:21]} b6 {[%emt 0:02:18]} 38. Rh7 {[%emt 0:00:30]} Re7 {[%emt 0:00:22]} 39. bxc5+ {[%emt 0:00:21]} bxc5 {[%emt 0:00:03]} 40. Rh6 {[%emt 0:00:34]} Bb7 {[%emt 0:01:08]} 41. Rh8 {[%emt 0:03:17]} Kc7 {[%emt 0:00:00]} 42. Bh3 {[%emt 0:09:30]} Bc8 {[%emt 0:00:25]} 43. Rh6 {[%emt 0:00:25]} Kd6 {[%emt 0:00:05]} 44. c4 {[%emt 0:00:16]} Bxe6 {[%emt 0:05:31]} 45. Kc3 {[%emt 0:01:28]} dxc4 {[%emt 0:01:45]} 46. a4 {[%emt 0:03:06]} Kd7 {[%emt 0:00:54]} 47. Rxe6 {[%emt 0:00:09]} 1-0